Cogmind - Beta 13 @@@ ROGUE MODE // 2024.04.14 @ 17:41:04 Player: LEWiKK Result: Destroyed by MJ-NW9(R) with Subdweller Machine Gun Performance ------------- Evolutions (0) 0 Regions Visited (2) 400 Robots Destroyed (21) 105 Value Destroyed (492) 492 Prototype IDs (0) 0 Alien Tech Used (0) 0 Bonus (0) 0 TOTAL SCORE: 997 Bonus ------- None Cogmind --------- Core Integrity 0/250 Matter 273/300 Energy 68/160 System Corruption 0% Temperature Cool (0) Movement Walking (190) Ox1 Location -10/Subcaves Parts ------- > --- POWER (1) -------- Light Nuclear Core > --- PROPULSION (2) --- Aluminum Leg Aluminum Leg > --- UTILITY (2) ------ Medium Storage Unit Light Armor Plating > --- WEAPON (2) ------- Medium Laser Flamer > --- INVENTORY (10) --- Aluminum Leg Light Armor Plating Light Armor Plating Makeshift Kinetic Plating Heavy Riot Gun Mining Laser Peak State ------------ > --- POWER ------------ Light Nuclear Core > --- PROPULSION ------- Aluminum Leg Aluminum Leg > --- UTILITY ---------- Medium Storage Unit Light Armor Plating > --- WEAPON ----------- Medium Laser > --- INVENTORY -------- Aluminum Leg Light Armor Plating Light Armor Plating Makeshift Kinetic Plating Heavy Riot Gun Mining Laser Flamer [Rating: 9] Favorites ----------- Power Ion Engine Engine Ion Engine Power Core Light Nuclear Core Propulsion Aluminum Leg Leg Aluminum Leg Utility Medium Storage Unit Device Terrain Scanner Storage Medium Storage Unit Protection Light Armor Plating Weapon Assault Rifle Energy Gun Medium Laser Ballistic Gun Assault Rifle Special Weapon Mining Laser Build | -11 -10 -10 ------- Run | Yrd Mat Sub Slots Evolved . | . . . Power . | . . . Propulsion . | . . . Utility . | . . . Weapon . | . . . Parts Attached 14 | . 4 10 Power 2 | . 1 1 Engine 1 | . 1 . Core 1 | . . 1 Reactor . | . . . Propulsion 2 | . . 2 Treads . | . . . Leg 2 | . . 2 Wheel . | . . . Hover . | . . . Flight . | . . . Utility 4 | . 3 1 Device 1 | . 1 . Storage 1 | . 1 . Processor . | . . . Hackware . | . . . Protection 2 | . 1 1 Artifact . | . . . Weapon 6 | . . 6 Energy Gun 2 | . . 2 Energy Cannon . | . . . Ballistic Gun 1 | . . 1 Ballistic Cannon . | . . . Launcher . | . . . Special Weapon 3 | . . 3 Impact Weapon . | . . . Slashing Weapon . | . . . Piercing Weapon . | . . . Special Melee Weapon . | . . . Unidentified Prototypes . | . . . Parts Lost 7 | . 1 6 Power 2 | . 1 1 Propulsion 2 | . . 2 Utility 1 | . . 1 Weapon 2 | . . 2 Highest Loss Streak 3 | . 1 3 To Critical Strikes . | . . . Average Slot Usage (%) 97 | . 95 99 Engine 13 | . 14 13 Leg 27 | . 28 27 Device 3 | . 7 . Storage 14 | . 14 14 Protection 9 | . 2 13 Energy Gun 13 | . 14 13 Ballistic Gun 13 | . 14 13 Naked Turns . | . . . Heaviest Build 22 | 14 22 22 Greatest Support 20 | 20 20 20 Greatest Overweight (x) 2 | . 1 2 Average Overweight (x) . | . . 1 Largest Inventory Capacity 10 | 8 10 10 Average Capacity 9 | 8 9 10 Most Carried 10 | 6 10 10 Average Carried 9 | 6 9 9 Final Capacity 10 | 8 10 10 Final Carried 10 | 6 10 6 Class Distribution -------------------- 100% | Mutant Dominant Class ---------------- Mutant | -10/Materials Mutant | -10/Subcaves Resources | -11 -10 -10 ----------- Run | Yrd Mat Sub Matter Collected 518 | 200 205 113 Remotely . | . . . Salvage Created 703 | . 500 203 Parts 45 | . 33 12 Haulers Intercepted . | . . . Recyclers Shooed 1 | . 1 . Parts Field Recycled . | . . . Retrieved Matter . | . . . Parts Self-Destructed . | . . . Prevented . | . . . Kills | -11 -10 -10 ------- Run | Yrd Mat Sub Combat Hostiles Destroyed 16 | . 12 4 Guns 16 | . 12 4 Classes Destroyed 7 | . 6 1 Worker 1 | . 1 . Recycler 1 | . 1 . Operator 1 | . 1 . Watcher 2 | . 2 . Swarmer 6 | . 6 . Grunt 6 | . 6 . Subdweller 4 | . . 4 Best Kill Streak 5 | . 5 1 Combat Bots Only 3 | . 3 1 Max Kills in Single Turn 1 | . 1 1 Gunslinging . | . . . Exploded . | . . . Melee . | . . . Uniques/NPCs Destroyed . | . . . Combat | -11 -10 -10 -------- Run | Yrd Mat Sub Hostile Shots Fired 102 | . 62 40 Missed 29 | . 18 11 Damage Taken 1126 | . 448 678 Core 261 | . 65 196 Absorbed by Shields . | . . . Core Remaining (%) 100 | 100 . . Volleys Fired 79 | . 55 24 Largest 2 | . 2 2 Hottest 100 | . 70 100 Shots Fired 155 | . 110 45 Gun 152 | . 110 42 Cannon . | . . . Launcher . | . . . Special 3 | . . 3 Kinetic 76 | . 55 21 Thermal 79 | . 55 24 Explosive . | . . . Electromagnetic . | . . . Robot Hit Streak 11 | . 6 11 Robot Miss Streak 4 | . 4 2 Penetration Max . | . . . Secondary Targets 1 | . 1 . Max Gunslinging Chain 1 | . 1 . Shots Hit Robots 94 | . 62 32 Core Hits 36 | . 27 9 Critical Kills . | . . . Critical Parts Destroyed . | . . . Critical Strikes 5 | . 3 2 Burn 5 | . 3 2 Melee Attacks . | . . . Impact . | . . . Slashing . | . . . Piercing . | . . . Sneak Attacks . | . . . Combat Hostiles . | . . . Follow-up Attacks . | . . . Damage Inflicted 1226 | . 801 425 Guns 1226 | . 801 425 Cannons . | . . . Explosions . | . . . Melee . | . . . Ramming . | . . . Kinetic 658 | . 439 219 Thermal 568 | . 362 206 Explosive . | . . . Electromagnetic . | . . . Impact . | . . . Slashing . | . . . Piercing . | . . . Highest Corruption . | . . . Average Corruption . | . . . Corruption Purged . | . . . Corruption Blocked . | . . . Overload Shots . | . . . Overflow Damage . | . . . Projectiles . | . . . Explosions . | . . . Melee . | . . . Knockbacks . | . . . Impact . | . . . Kinetic . | . . . Secondary . | . . . Self-Inflicted Damage . | . . . Shots . | . . . Rammed . | . . . Targets Rammed . | . . . Kicked . | . . . Crushed . | . . . Highest Temperature 111 | . 111 . Average Temperature 25 | . 25 . Received Heat Transfer 210 | . 138 72 Siege Activations . | . . . Robots Corrupted . | . . . Combat Hostiles . | . . . Parts Fried . | . . . Impact Corruptions . | . . . Robots Melted . | . . . Combat Hostiles . | . . . Parts Melted 3 | . 3 . Heat Transferred 2035 | . 1295 740 Parts Sabotaged . | . . . Parts Stolen . | . . . Parts Stripped . | . . . Power Chain Reactions . | . . . Alert | -11 -10 -10 ------- Run | Yrd Mat Sub Peak Influence 248 | . 248 . Initial . | . . . Average 111 | . 114 . Maximum Alert Level 1 | . 1 . Low Security (%) 84 | 100 83 . Level 1 15 | . 16 . Level 2 . | . . . Level 3 . | . . . Level 4 . | . . . Level 5 . | . . . High Security . | . . . Max Security . | . . . Squads Dispatched 3 | . 3 . Investigation 1 | . 1 . Extermination . | . . . Reinforcement 2 | . 2 . Assault . | . . . Garrison . | . . . Intercept . | . . . Searches Triggered . | . . . Construction Impeded . | . . . Haulers Reinforced . | . . . Active Scanning Responses . | . . . Cargo Convoy Interrupts . | . . . Stealth | -11 -10 -10 --------- Run | Yrd Mat Sub Distress Signals . | . . . Communications Jammed . | . . . Distress Signals . | . . . Times Spotted 30 | . 21 9 Peak Tracking Total 4 | . 4 3 Tactical Retreats 3 | . 3 . Traps | -11 -10 -10 ------- Run | Yrd Mat Sub Traps Triggered 1 | . 1 . Indirectly . | . . . Trap Hack Attempts . | . . . Triggered . | . . . Disarmed . | . . . Reprogrammed . | . . . Reused . | . . . Traps Extracted . | . . . Installed . | . . . Triggered . | . . . Machines | -11 -10 -10 ---------- Run | Yrd Mat Sub Machines Disabled . | . . . Max in Single Turn . | . . . Machines Repaired . | . . . Machines Dismantled . | . . . Machines Sabotaged . | . . . Overloaded Fab Kills . | . . . Hacking | -11 -10 -10 --------- Run | Yrd Mat Sub Machines Accessed 4 | . 3 1 Terminals 3 | . 3 . Fabricators . | . . . Repair Stations . | . . . Recycling Units . | . . . Scanalyzers . | . . . Garrison Access . | . . . Total Hacks 13 | . 10 3 Successful 7 | . 4 3 Failed 6 | . 6 . Catastrophic 2 | . 2 . Database Lockouts . | . . . Manual 3 | . 3 . Terminals 10 | . 10 . Fabricators . | . . . Repair Stations . | . . . Recycling Units . | . . . Scanalyzers . | . . . Garrison Access . | . . . Terminal Hacks 4 | . 1 3 Record 3 | . . 3 Security Status 1 | . 1 . Fabricator Hacks . | . . . Repair Station Hacks . | . . . Recycling Unit Hacks . | . . . Scanalyzer . | . . . Garrison Access Hacks . | . . . Unauthorized Hacks 3 | . 3 . Terminals 3 | . 3 . Botnet 3 | . 3 . Fabricators . | . . . Repair Stations . | . . . Recycling Units . | . . . Scanalyzers . | . . . Garrison Access . | . . . Data Cores Recovered . | . . . Used . | . . . Hacking Detections 3 | . 3 . Full Trace Events 2 | . 2 . Feedback Events . | . . . Feedback Blocked . | . . . Robot Schematics Acquired . | . . . Robots Built . | . . . Authchips . | . . . Time . | . . . Total Robot Build Rating . | . . . Part Schematics Acquired . | . . . Parts Built . | . . . Authchips . | . . . Time . | . . . Total Part Build Rating . | . . . Parts Repaired . | . . . Time . | . . . Parts Recycled . | . . . Recycled Matter . | . . . Retrieved Matter . | . . . Retrieved Components . | . . . Parts Scanalyzed . | . . . Part Schematics Acquired . | . . . Parts Damaged . | . . . Bothacking | -11 -10 -10 ------------ Run | Yrd Mat Sub Used RIF Installer . | . . . Robots Hacked . | . . . Non-combat . | . . . Combat . | . . . Robot Hacks Applied . | . . . Relay Couplers Released . | . . . Fabnet Peak Effective % . | . . . Robots Rewired . | . . . Allies Hacked . | . . . Hacks Repelled . | . . . Allies | -11 -10 -10 -------- Run | Yrd Mat Sub Total Allies . | . . . Largest Group . | . . . Highest-Rated Group . | . . . Highest-Rated Ally . | . . . Total Orders . | . . . Ally Attacks . | . . . Total Damage . | . . . Kills . | . . . Allies Corrupted . | . . . Allies Melted . | . . . Intel | -11 -10 -10 ------- Run | Yrd Mat Sub Robot Analysis Total . | . . . Derelict Logs Recovered 1 | . . 1 Drone Launches . | . . . Drone Recoveries . | . . . Exploration | -11 -10 -10 ------------- Run | Yrd Mat Sub Turns Passed 2890 | 27 1155 1708 Spaces Moved 1526 | 23 673 830 Core . | . . . Treads . | . . . Legs 1526 | 23 673 830 Wheels . | . . . Hover . | . . . Flight . | . . . Fastest Speed 120 | 120 120 190 Average Speed 162 | 120 130 190 Slowest Speed 260 | 120 190 260 Overloaded Moves . | . . . Propulsion Burnouts . | . . . Robots Hopped . | . . . Cave-ins Triggered . | . . . Exploration Rate (%) 41 | 3 77 45 Regions Visited 2 Branch Regions 1 Pre-discovered Areas 1 | . . 1 Known Exits Taken . | . . . Unknown Exits Taken 2 | 1 1 . Scrap Searched 7 | . . 7 Spaces Dug . | . . . Terrain Destroyed . | . . . Melee . | . . . Projectile . | . . . AOE . | . . . Terrain Rammed . | . . . Walls Destroyed . | . . . Machines Disabled . | . . . Actions | -11 -10 -10 --------- Run | Yrd Mat Sub Total 1780 | 22 850 908 Wait 127 | . 87 40 Move 1524 | 22 672 830 Hop . | . . . Pick Up 22 | . 19 3 Fast Attach . | . . . Attach 10 | . 4 6 Detach . | . . . Swap 4 | . . 4 Drop 14 | . 13 1 Fire 79 | . 55 24 Melee . | . . . Ram . | . . . Kick . | . . . Crush . | . . . Escape Stasis . | . . . Rewire . | . . . Trap . | . . . Miscellaneous . | . . . Route ------- -11/Scrapyard -10/Materials (discovered 4 exits: [*Mat x2] / [*Min] / *Sub) -10/Subcaves (discovered 1 exit: [*Mat]) History --------- Turn | Location | Event 1 | -11/Scrapyard | Discovered new exit (range 3) 28 | -11/Scrapyard | Entered Materials 239 | -10/Materials | Discovered new exit (range 16) 309 | -10/Materials | Build established: Mutant 412 | -10/Materials | Discovered new exit (range 5) 637 | -10/Materials | Discovered new exit (range 12) 862 | -10/Materials | Discovered new exit (range 7) 1183 | -10/Materials | Entered Subcaves 1222 | -10/Subcaves | Shifting Twisted Machinery released Sub. Monowheel 1237 | -10/Subcaves | Learned Materials emergency access door positions 1278 | -10/Subcaves | Shifting Twisted Machinery released Flamer 1343 | -10/Subcaves | Discovered new exit (range 14) 1388 | -10/Subcaves | Visited Clippyterm 1394 | -10/Subcaves | Learned location of Deep Caves (-7) 1394 | -10/Subcaves | Learned Research machine intel 2656 | -10/Subcaves | Core integrity fell below 50% 2877 | -10/Subcaves | A Subdweller sparked back to life 2889 | -10/Subcaves | Core integrity fell below 20% 2891 | -10/Subcaves | Destroyed by MJ-NW9(R) with Subdweller Machine Gun Last Messages --------------- Found 16 Matter. Subatomizers dissect the Sub. Laser. 9D-SCI(z): "She is not going to be happy we haven't found any suitable candidates yet." KX-MYH(R) suffers critical hit (Burn). KX-MYH(R) destroyed. Acquired 3 matter. Acquired 20 matter. Acquired 4 matter. 3D-LZ3(R) destroyed. Acquired 28 matter. Aluminum Leg destroyed. JK-44F(R) destroyed. QC-V58(R) suffers critical hit (Burn). QC-V58(R) destroyed. Acquired 22 matter. XX-GIJ(R) creaks and sparks as it begins to move. Ion Engine destroyed. Assault Rifle destroyed. Lgt. Armor Plating destroyed. Map ----- +----------------------------------------------------+ | ##"*=### %"### #??????? | | """&##?# "#?## # #??????? | | """%#??# "#??# # #??????? | | !&&#??# #??# # ##??????? | | ###??#####??## ##???????? | | """""##????????????# ##????????? | | #????????????# # ## ## #?????????? | | ### #????????????############## #?????????? | | #?# ##?????????????????????????# ### #?????????? | | ??###??????????????????????????# ### ###???????? | | ?????????????????????????????## ## #???????? | | ??????????????????????????### ## #???????? | | ??????????????????????????# #### ##??????? | | ??????????????????????????# ????## ###????? | | ???????????????????????????# ?###### ####?? | | ????????????????????????????# ## #### #?? | | ???????????????????####??????# #?## #?? | | ???????????????????# ##???## #???### #?? | | ??????????????????## #### #?##### #?? | | ??????????????????# ## # ### ###?? | | ?????????????????????# ## ##??? | | ?????????????????????## ## ###? | | ?????????????????????## ### ## # ## #? | | ??????????????????#### ##?#### ### ##? | | ??????????????????# < RR ##????## ### ##?? | | ??????????????????#&<< R@ ##?????# ### #??? | | ???????????????# < ####??????# ##[! #??? | | ???????????????# ???????????### &=%##??? | | ????????????? # ??????????????# &%& #??? | | ???????????# ? ???????????????##### #??? | | ????????????## ? #????????????????????## ##??? | | ??????????????? ##???????????????????????# ##???? | | ??????????????#?????????????????????????? #????? | | ???????????????????????????????????????? #????? | | ???????????????????????????????????????# #????? | | ???????????????????????????????????????# #????? | | ??????????????????????????????????????? #????? | | ??????????????????????????????????????## ????? | | ???????????????????????????????????????## ????? | | ????????????????????????????????????????# ????? | | ????????????????????????????????????????# ????? | | ???????????????????????????????????????? ##???? | | ???????????????????????????????????????? #?????? | | ????????????????????????????????????????? ??????? | | ?????????????????????????????????????????????????? | | ?????????????????????????????????????????????????? | | ?????????????????????????????????????????????????? | | ?????????????????????????????????????????????????? | | ?????????????????????????????????????????????????? | | ?????????????????????????????????????????????????? | +----------------------------------------------------+ Best States ------------- Heat Dissipation 25 Energy Generation 14 Energy Capacity 250 Matter Stores 300 Matter Capacity 300 Sight Range 16 Terrain Scan Range 14 Terrain Scan Density 10 Armor Coverage 150 Evasion (%) 55 Item Schematics ----------------- None Robot Schematics ------------------ None Fabricated ------------ Nothing Alien Tech Used ----------------- None Achievements -------------- None Challenges ------------ None Game ------ Seed ProjectionFluxVibroblade Manual? 0 Play Time 00:18:59 Cumulative 27.3 hours Start 2024.04.14 @ 17:22:51 End 2024.04.14 @ 17:41:04 Sessions 1 Manual Loads 0 Difficulty Rogue Special Mode None Game No. 25 Rogue 25 Adventurer 0 Explorer 0 Win Type - Total 0 Types 0/0/0/0/0/0/0/0/0 Lore% 29 Gallery% 21 Achievement% 25 Wizard Run 0 Options --------- Layout 1 ASCII 0 Keyboard 0 Movement Mouse Keybinds 0 Fullscreen 2 Font 20/SmallcapsGlow Map View 54x42 Zoom Use 0% Tactical HUD 0 Map Filters NONE Filters NONE Steam 1 RUN: d45bdec5-66e7-4fff-85df-86630e3a6da1